Cogmind - Beta 9.6 *** ADVENTURER MODE // 2020.05.02 @ 20:00:47 Player: Street Preacher Result: Destroyed by S-10 Pest with Light Assault Rifle Performance ------------- Evolutions (0) 0 Regions Visited (1) 200 Robots Destroyed (16) 80 Value Destroyed (372) 372 Prototype IDs (2) 40 Alien Tech Used (0) 0 Bonus (0) 0 TOTAL SCORE: 692 Bonus ------- None Cogmind --------- Core Integrity 0/250 Matter 285/300 Energy 123/125 System Corruption 0% Temperature Cool (1) Movement Walking (210) Ox3 Location -10/Materials Parts ------- > --- POWER (1) -------- Light Ion Engine > --- PROPULSION (2) --- Aluminum Leg > --- UTILITY (2) ------ High-capacity Storage Unit Signal Interpreter > --- WEAPON (2) ------- (None) > --- INVENTORY (12) --- Hover Unit Heat Sink Improved Heat Sink Large Battery (300) Small Matter Pod (50) Visual Processing Unit Peak State ------------ > --- POWER ------------ Ion Engine > --- PROPULSION ------- Aluminum Leg Aluminum Leg > --- UTILITY ---------- Heat Sink Small Matter Pod > --- WEAPON ----------- Light Assault Rifle Mining Laser > --- INVENTORY -------- Wheel Wheel Small Laser Assault Rifle [Rating: 7] Favorites ----------- Power Light Ion Engine Engine Light Ion Engine Propulsion Aluminum Leg Leg Aluminum Leg Wheel Wheel Hover Unit Hover Unit Flight Unit Flight Unit Utility Heat Sink Device Heat Sink Storage High-capacity Storage Unit Processor Signal Interpreter Weapon Small Laser Energy Gun Small Laser Ballistic Gun Assault Rifle Special Weapon Mining Laser Build | -11 -10 ------- Run | Scr Mat Slots Evolved . | . . Power . | . . Propulsion . | . . Utility . | . . Weapon . | . . Parts Attached 28 | 7 21 Power 4 | 2 2 Engine 4 | 2 2 Core . | . . Reactor . | . . Propulsion 11 | 3 8 Treads . | . . Leg 7 | 2 5 Wheel 1 | 1 . Hover 1 | . 1 Flight 2 | . 2 Utility 7 | 1 6 Device 3 | 1 2 Storage 3 | . 3 Processor 1 | . 1 Hackware . | . . Protection . | . . Artifact . | . . Weapon 6 | 1 5 Energy Gun 3 | . 3 Energy Cannon . | . . Ballistic Gun 2 | 1 1 Ballistic Cannon . | . . Launcher . | . . Special Weapon 1 | . 1 Impact Weapon . | . . Slashing Weapon . | . . Piercing Weapon . | . . Special Melee Weapon . | . . Unidentified Prototypes . | . . Parts Lost 9 | . 9 Power 2 | . 2 Propulsion 2 | . 2 Utility . | . . Weapon 5 | . 5 Highest Loss Streak 5 | . 5 Average Slot Usage (%) 80 | . 80 Engine 9 | . 9 Leg 19 | . 19 Flight 1 | . 1 Device 10 | . 10 Storage 14 | . 14 Energy Gun 8 | . 8 Ballistic Gun 10 | . 10 Special Weapon 2 | . 2 Naked Turns . | . . Heaviest Build 41 | 7 41 Greatest Support 20 | 20 20 Greatest Overweight (x) 12 | . 12 Average Overweight (x) . | . 1 Largest Inventory Capacity 12 | 4 12 Average Capacity 6 | 4 7 Most Carried 6 | 4 6 Average Carried 3 | 2 3 Final Capacity 12 | 4 12 Final Carried 6 | 4 6 Class Distribution -------------------- 67% | Mutant 32% | Scavenger-Mutant Dominant Class ---------------- Mutant | -10/Materials Resources | -11 -10 ----------- Run | Scr Mat Matter Collected 606 | 276 330 Remotely . | . . Salvage Created 453 | 39 414 Parts 36 | 3 33 Haulers Intercepted . | . . Recyclers Shooed . | . . Parts Field Recycled . | . . Retrieved Matter . | . . Parts Self-Destructed . | . . Prevented . | . . Kills | -11 -10 ------- Run | Scr Mat Combat Hostiles Destroyed 14 | 1 13 Guns 14 | 1 13 Classes Destroyed 4 | 1 3 Worker 1 | . 1 Watcher 1 | . 1 Swarmer 6 | . 6 Grunt 8 | 1 7 Best Kill Streak 5 | 1 5 Combat Bots Only 5 | 1 5 Max Kills in Single Turn 1 | 1 1 Gunslinging . | . . Exploded . | . . Melee . | . . Uniques/NPCs Destroyed . | . . Combat | -11 -10 -------- Run | Scr Mat Damage Taken 900 | 24 876 Core 252 | . 252 Absorbed by Shields . | . . Core Remaining (%) 100 | 100 . Volleys Fired 71 | 6 65 Largest 2 | 1 2 Hottest 120 | 20 120 Shots Fired 88 | 6 82 Gun 86 | 6 80 Cannon . | . . Launcher . | . . Special 2 | . 2 Kinetic 70 | 6 64 Thermal 18 | . 18 Explosive . | . . Electromagnetic . | . . Robot Hit Streak 15 | 6 15 Robot Miss Streak 3 | . 3 Penetration Max . | . . Secondary Targets 1 | . 1 Max Gunslinging Chain 1 | . 1 Shots Hit Robots 66 | 6 60 Core Hits 30 | 2 28 Critical Hits 1 | 1 . Critical Kills . | . . Critical Parts Destroyed 1 | 1 . Melee Attacks . | . . Impact . | . . Slashing . | . . Piercing . | . . Sneak Attacks . | . . Combat Hostiles . | . . Follow-up Attacks . | . . Damage Inflicted 633 | 48 585 Guns 633 | 48 585 Cannons . | . . Explosions . | . . Melee . | . . Ramming . | . . Kinetic 526 | 48 478 Thermal 107 | . 107 Explosive . | . . Electromagnetic . | . . Impact . | . . Slashing . | . . Piercing . | . . Highest Corruption . | . . Average Corruption . | . . Corruption Purged . | . . Overload Shots . | . . Overflow Damage . | . . Projectiles . | . . Explosions . | . . Melee . | . . Knockbacks . | . . Impact . | . . Kinetic . | . . Secondary . | . . Self-Inflicted Damage . | . . Shots . | . . Rammed 1 | . 1 Targets Rammed 1 | . 1 Kicked . | . . Crushed . | . . Highest Temperature 84 | 6 84 Average Temperature 34 | 6 35 Received Heat Transfer 408 | 18 390 Siege Activations . | . . Robots Corrupted . | . . Combat Hostiles . | . . Parts Fried . | . . Impact Corruptions . | . . Robots Melted . | . . Combat Hostiles . | . . Parts Melted . | . . Heat Transferred 250 | . 250 Parts Sabotaged . | . . Parts Stolen . | . . Parts Stripped . | . . Power Chain Reactions . | . . Missiles Intercepted . | . . Alert | -11 -10 ------- Run | Scr Mat Peak Influence 270 | 20 270 Average Influence 112 | 3 130 Maximum Alert Level 1 | . 1 Low Security (%) 76 | 100 72 Level 1 23 | . 27 Level 2 . | . . Level 3 . | . . Level 4 . | . . Level 5 . | . . High Security . | . . Max Security . | . . Squads Dispatched 3 | . 3 Investigation 3 | . 3 Extermination . | . . Reinforcement . | . . Assault . | . . Garrison . | . . Intercept . | . . Construction Impeded . | . . Haulers Reinforced . | . . Stealth | -11 -10 --------- Run | Scr Mat Distress Signals 1 | . 1 Communications Jammed . | . . Distress Signals . | . . Times Spotted 24 | 1 23 Peak Tracking Total 5 | 1 5 Tactical Retreats . | . . Traps | -11 -10 ------- Run | Scr Mat Traps Triggered 1 | . 1 Indirectly . | . . Trap Hack Attempts . | . . Triggered . | . . Disarmed 4 | . 4 Reprogrammed . | . . Reused . | . . Traps Extracted . | . . Installed . | . . Triggered . | . . Machines | -11 -10 ---------- Run | Scr Mat Machines Disabled 1 | . 1 Max in Single Turn 1 | . 1 Machines Sabotaged . | . . Garrisons Compromised . | . . Overloaded Fab Kills . | . . Fab Network Shutdowns . | . . Hacking | -11 -10 --------- Run | Scr Mat Machines Accessed 5 | . 5 Terminals 5 | . 5 Fabricators . | . . Repair Stations . | . . Recycling Units . | . . Scanalyzers . | . . Garrison Access . | . . Total Hacks 31 | . 31 Successful 25 | . 25 Failed 6 | . 6 Catastrophic . | . . Database Lockouts . | . . Manual . | . . Terminals 31 | . 31 Fabricators . | . . Repair Stations . | . . Recycling Units . | . . Scanalyzers . | . . Garrison Access . | . . Terminal Hacks 25 | . 25 Record 8 | . 8 Prototype ID Bank 1 | . 1 Alert Level 2 | . 2 Unreport Threat 1 | . 1 Locate Traps 1 | . 1 Disarm Traps 1 | . 1 Dispatch Records 1 | . 1 Maintenance Status 1 | . 1 Security Status 1 | . 1 Investigation Status 1 | . 1 Recall Investigation 2 | . 2 Hauler Manifests 1 | . 1 Registered Components 1 | . 1 Registered Prototypes 1 | . 1 Zone Layout 2 | . 2 Fabricator Hacks . | . . Repair Station Hacks . | . . Recycling Unit Hacks . | . . Scanalyzer . | . . Garrison Access Hacks . | . . Unauthorized Hacks . | . . Terminals . | . . Fabricators . | . . Repair Stations . | . . Recycling Units . | . . Scanalyzers . | . . Garrison Access . | . . Data Cores Recovered . | . . Used . | . . Hacking Detections 5 | . 5 Full Trace Events 5 | . 5 Feedback Events . | . . Feedback Blocked . | . . Robot Schematics Acquired . | . . Robots Built . | . . Matter . | . . Time . | . . Total Robot Build Rating . | . . Part Schematics Acquired . | . . Parts Built . | . . Matter . | . . Time . | . . Total Part Build Rating . | . . Parts Repaired . | . . Time . | . . Parts Recycled . | . . Recycled Matter . | . . Retrieved Matter . | . . Retrieved Components . | . . Parts Scanalyzed . | . . Part Schematics Acquired . | . . Parts Damaged . | . . Bothacking | -11 -10 ------------ Run | Scr Mat Used RIF Installer . | . . Robots Hacked . | . . Non-combat . | . . Combat . | . . Robot Hacks Applied . | . . Relay Couplers Released . | . . Robots Rewired . | . . Allies Hacked . | . . Hacks Repelled . | . . Allies | -11 -10 -------- Run | Scr Mat Total Allies . | . . Largest Group . | . . Highest-Rated Group . | . . Highest-Rated Ally . | . . Total Orders . | . . Ally Attacks . | . . Total Damage . | . . Kills . | . . Allies Corrupted . | . . Allies Melted . | . . Intel | -11 -10 ------- Run | Scr Mat Robot Analysis Total . | . . Derelict Logs Recovered . | . . Drone Launches . | . . Drone Recoveries . | . . Exploration | -11 -10 ------------- Run | Scr Mat Turns Passed 737 | 106 631 Spaces Moved 364 | 78 286 Core 30 | 20 10 Treads . | . . Legs 318 | 56 262 Wheels 2 | 2 . Hover 1 | . 1 Flight 13 | . 13 Fastest Speed 37 | 50 37 Average Speed 140 | 101 151 Slowest Speed 650 | 120 650 Overloaded Moves . | . . Propulsion Burnouts . | . . Robots Hopped . | . . Cave-ins Triggered . | . . Exploration Rate (%) 27 | 7 48 Regions Visited 1 Branch Regions . Pre-discovered Areas . | . . Known Exits Taken . | . . Unknown Exits Taken 1 | 1 . Scrap Searched . | . . Spaces Dug . | . . Terrain Destroyed 1 | . 1 Melee . | . . Projectile 1 | . 1 AOE . | . . Actions | -11 -10 --------- Run | Scr Mat Total 501 | 100 401 Wait 1 | 1 . Move 363 | 77 286 Hop . | . . Pick Up 23 | 7 16 Fast Attach 4 | 2 2 Attach 11 | 4 7 Detach 2 | 1 1 Swap 13 | 1 12 Drop 12 | 1 11 Fire 71 | 6 65 Melee . | . . Ram 1 | . 1 Kick . | . . Crush . | . . Escape Stasis . | . . Rewire . | . . Trap . | . . Miscellaneous . | . . Route ------- -11/Scrapyard -10/Materials (discovered 3 exits: [*Mat] / [*Min x2]) History --------- Turn | Location | Event 2 | -11/Scrapyard | Met Revision 17 73 | -11/Scrapyard | Discovered new exit (range 8) 107 | -11/Scrapyard | Entered Materials 138 | -10/Materials | Discovered new exit (range 18) 334 | -10/Materials | Discovered new exit (range 16) 430 | -10/Materials | Discovered new exit (range 15) 526 | -10/Materials | Core integrity fell below 50% 545 | -10/Materials | Core integrity fell below 20% 589 | -10/Materials | Lost 5 parts (1p2n2w) 738 | -10/Materials | Destroyed by S-10 Pest with Light Assault Rifle Last Messages --------------- 00538_ Slammed into G-34 Mercenary. 00542_ G-34 Mercenary destroyed. 00547_ R-06 Scavenger collects Aluminum Leg. 00551_ R-06 Scavenger collects Heat Sink. 00551_ Acquired Sml. Laser. 00556_ R-06 Scavenger collects Aluminum Leg. 00558_ Lgt. Ion Engine destroyed. 00559_ G-47 Trooper destroyed. 00560_ R-06 Scavenger collects Particle Gun. 00561_ Acquired 40 matter. 00575_ The unstable cave ceiling collapses. 00585_ Acquired Imp. Heat Sink. 00592_ Acquired Aluminum Leg. 00601_ Acquired 37 matter. 00603_ Acquired 39 matter. 00693_ Acquired Lgt. Ion Engine. 00706_ Acquired Signal Interpreter. 00736_ Critical hit. 00736_ Sml. Laser destroyed. [Achievement: First Step to Greatness] Map ----- +----------------------------------------------------+ | ??????????????????????????????????????? | | ??????????????????????????????????????? | | ??????????????????????????????????????? | | ??????????????????????????????????????? | | ??????????????????????????????????????? | | ??????????????????????????????????????? | | ??????????????????????????????????????? | | ??????????????????????????????????????? | | ??????????????????????????????????????? | | ??????????????????????????????????????? | | ??????????????????????????????????????? | | ??????????????????????????????????????? | | ??????????????????????????????????????? | | ??????????????????????????????????????? | | ??????????????????????????????????????? | | ??????????????????????????????????????? | | ?????????###########??????????????????? | | ?????????# #??????????????????? | | ?????????# #??????????????????? | | ?????????# """ """ #??????????????????? | | ?????????# """ """ #??????????????????? | | ?????????# """ """ #??????????????????? | | ?????????# """ """ #????????????????? | | ?????????# """ """ #??+#????????????? | | ?????????# #?? #????????????# | | ?????#########@####### #??????????? | | ?????# """ #?????????#"" | | ?????# "T" / """?????# ! | | ?????# s # """?????#"" < | | ?????# #?????????# | | ?????# #?????????#"" | | ?????# """ """ """ #?????????#" | | ?????# """ """ """ #####?????#### | | ?????# """ """ " ########## | | ?????# | | ###### % | | # # ######## | | # # #??????# #######+##% | | # # #??????# ### ##????? # | | # # #??????# #?# #?????? # | | # # #??????# #?# #????? # | | # "" # #?????## ### #?????""" # | | # T" #% #?????# ## #???? """ # ! | | # "" % #?????# ## #???? """ # = | | # # ##????# ## #??? """ # | | ##### #????# ## #??? ?"" + | | # #% ##????# ## #?? ?? # | | # T # #?????######## #?? ??? ### | | # # #?????# ???? ?????? #?? | | # # #?????# ????? ??????####?? | +----------------------------------------------------+ Best States ------------- Heat Dissipation 39 Energy Generation 10 Energy Capacity 425 Matter Stores 350 Matter Capacity 350 Sight Range 16 Terrain Scan Density 10 Resistance: KI 20 Resistance: TH 20 Resistance: EX 20 Resistance: EM 20 Resistance: I 20 Resistance: S 20 Resistance: P 20 Evasion (%) 50 Offensive Hacking 10 Item Schematics ----------------- None Robot Schematics ------------------ None Fabricated ------------ Nothing Alien Tech Used ----------------- None Achievements -------------- Crack Shot Everything Is Under Control First Step to Greatness GoHome() One Hack Too Far Shopping List Challenges ------------ None Game ------ Seed LightFieldBay Manual? 0 Play Time 00:23:24 Cumulative 1.4 hours Start 2020.05.02 @ 19:04:20 End 2020.05.02 @ 20:00:47 Sessions 1 Manual Loads 0 Difficulty Adventurer Special Mode None Game No. 3 Rogue 2 Adventurer 1 Explorer 0 Win Type - Total 0 Types 0/0/0/0/0/0/0 Lore% 1 Gallery% 2 Achievement% 2 Wizard Run 0 Options --------- ASCII 0 Keyboard 0 Movement Mouse Keybinds 0 Fullscreen 1 Font 36/Smallcaps Map View 76x50 Tactical HUD 1 Map Filters NONE Filters NONE Steam 1 RUN: 74748cd4-29dc-4bef-a00c-6b27e44c55aa